bitfinex/quotes_BTCUSD_20250320
["timestamp","ask_amount","ask_price","bid_price","bid_amount"]
[1742494632987,0.3,84379.0,84378.0,0.11957503]
[1742494633191,0.548876,84379.0,84378.0,0.11957503]
[1742494633399,0.5603203,84379.0,84378.0,0.11957503]
[1742494635440,0.5603203,84379.0,84369.0,0.371488]
[1742494635441,0.237051,84370.0,84369.0,0.13444]
[1742494635639,0.248903,84370.0,84369.0,0.13444]
[1742494635998,0.248903,84370.0,84369.0,1.5]
[1742494636603,0.248903,84370.0,84369.0,1.502]
[1742494637228,0.23706,84367.0,84365.0,0.56424]
[1742494637422,0.248912,84367.0,84366.0,0.15820784]
[1742494640453,0.248912,84367.0,84366.0,0.02476784]
[1742494640454,0.548912,84367.0,84366.0,0.02476784]
[1742494640647,0.548912,84367.0,84366.0,0.001]
[1742494642550,0.248929,84361.0,84360.0,0.00046284]
[1742494642948,0.237076,84361.0,84360.0,0.00046284]
[1742494643151,0.248929,84361.0,84360.0,0.00046284]
[1742494643477,0.237076,84361.0,84360.0,0.00046284]
[1742494643702,0.56376948,84370.0,84363.0,0.011853]
[1742494643703,0.26376948,84370.0,84363.0,0.011853]
[1742494643922,0.011852,84370.0,84364.0,0.11957503]
[1742494644124,0.237061,84367.0,84364.0,0.49108003]
[1742494644621,0.00392409,84366.0,84364.0,0.49108003]
[1742494644818,0.00392409,84366.0,84364.0,0.49108203]
[1742494645145,0.3,84369.0,84367.0,0.237059]
[1742494645293,0.26748018,84372.0,84369.0,0.237052]
[1742494645519,0.01858218,84372.0,84371.0,0.237048]
[1742494645709,0.237057,84368.0,84364.0,0.13444]
[1742494645922,0.237057,84368.0,84365.0,0.35664003]
[1742494646119,0.237053,84370.0,84367.0,0.237059]
[1742494647017,0.237056,84369.0,84366.0,0.237062]
[1742494647271,0.237056,84369.0,84366.0,0.35663703]
[1742494647447,0.237056,84369.0,84367.0,0.02486037]
[1742494648347,0.237056,84368.0,84367.0,0.02486037]
[1742494648953,0.237056,84368.0,84367.0,0.02386037]
[1742494649184,0.237056,84369.0,84367.0,0.02386037]
[1742494649710,0.248903,84370.0,84367.0,0.02386037]
[1742494649881,0.248903,84371.0,84367.0,0.02386037]
[1742494650084,0.26747918,84372.0,84371.0,0.237048]
[1742494650085,0.01858218,84372.0,84371.0,0.237048]
[1742494650289,0.01858218,84372.0,84367.0,0.02486037]
[1742494650290,0.01858218,84372.0,84368.0,0.011852]
[1742494650449,0.01858218,84372.0,84371.0,0.237048]
[1742494650649,0.02250627,84372.0,84371.0,0.237048]
[1742494650852,0.02250627,84372.0,84370.0,0.237048]
[1742494651054,0.237048,84371.0,84368.0,0.248903]
[1742494651560,0.00392409,84370.0,84368.0,0.248903]
[1742494651783,0.00392409,84370.0,84369.0,0.248905]
[1742494652207,0.01858218,84372.0,84371.0,0.2489]
[1742494652380,0.01858218,84372.0,84370.0,0.23705]
[1742494652582,0.01858218,84372.0,84371.0,0.237048]
[1742494652829,0.01858218,84372.0,84371.0,0.2489]
[1742494653041,0.0114443,84379.0,84376.0,0.248883]
[1742494653242,0.537029,84378.0,84376.0,0.237032]
[1742494653442,0.3,84378.0,84376.0,0.237032]
[1742494653657,0.3,84378.0,84374.0,0.011851]
[1742494653658,0.0114941,84381.0,84380.0,0.237022]
[1742494653866,0.0001691,84381.0,84380.0,0.46844803]
[1742494654138,0.0001691,84381.0,84380.0,0.48298888]
[1742494654773,0.0001691,84381.0,84380.0,2.05978888]
[1742494655107,0.0001691,84381.0,84380.0,2.47358627]
[1742494658160,0.0001691,84381.0,84380.0,2.49768888]
[1742494658353,0.0001691,84381.0,84380.0,2.54628888]
[1742494658619,0.0001691,84381.0,84380.0,2.55788539]
[1742494660767,0.0001691,84381.0,84380.0,2.54628888]
[1742494660978,0.0001691,84381.0,84380.0,2.68064888]
[1742494662557,0.0001691,84381.0,84380.0,2.69163686]
[1742494667278,0.0001691,84381.0,84380.0,3.24456888]
[1742494671744,0.0001691,84381.0,84380.0,3.11916888]
[1742494676617,0.0011691,84381.0,84380.0,2.98480888]
[1742494676901,0.0011691,84381.0,84380.0,3.11912888]
[1742494677536,0.0011691,84381.0,84380.0,2.98480888]
[1742494677833,0.0011691,84381.0,84380.0,3.11912888]
[1742494678033,0.0001691,84381.0,84380.0,3.11912888]
[1742494678176,0.0001691,84381.0,84380.0,3.12512888]
[1742494678594,0.0001691,84381.0,84380.0,3.25552888]
[1742494678791,0.0001691,84381.0,84380.0,3.24952888]
[1742494679082,0.0001691,84381.0,84380.0,3.25452888]
[1742494679606,0.0001691,84381.0,84380.0,3.24952888]
[1742494679804,2e-07,84382.0,84381.0,0.26341185]
[1742494680017,2e-07,84382.0,84381.0,0.38298688]
[1742494680220,2e-07,84382.0,84381.0,0.46508688]
[1742494680629,2e-07,84382.0,84381.0,1.96508688]
[1742494680868,2e-07,84382.0,84381.0,1.97607736]
[1742494681068,2e-07,84382.0,84381.0,1.98505947]
[1742494681447,2e-07,84382.0,84381.0,1.99005947]
[1742494682585,2e-07,84382.0,84381.0,2.40385686]
[1742494685184,2e-07,84382.0,84381.0,2.70385686]
[1742494685627,2e-07,84382.0,84381.0,2.69885686]
[1742494686153,2e-07,84382.0,84381.0,2.70485686]
[1742494686922,2e-07,84382.0,84381.0,2.74149289]
[1742494687511,2e-07,84382.0,84381.0,2.74049289]
[1742494687841,2e-07,84382.0,84381.0,2.74649289]
[1742494688536,2e-07,84382.0,84381.0,2.74683129]
[1742494688866,3e-07,84399.0,84398.0,0.34882]
[1742494689080,0.000169,84404.0,84399.0,0.26335785]
[1742494689081,9.9e-07,84404.0,84399.0,0.26335785]
[1742494689286,9.9e-07,84409.0,84408.0,0.348791]
[1742494689515,9.9e-07,84409.0,84408.0,1.46054427]
[1742494689840,1.9e-07,84415.0,84414.0,0.34591385]
[1742494690049,0.00041576,84415.0,84414.0,0.59980888]
[1742494690255,0.00041576,84415.0,84414.0,0.60848806]
[1742494690665,0.00041576,84415.0,84414.0,0.53687854]
[1742494691747,0.00041576,84415.0,84414.0,0.54287854]
[1742494692164,7.6e-07,84415.0,84414.0,0.54287854]
[1742494693311,7.6e-07,84415.0,84414.0,0.50855854]
[1742494693517,7.6e-07,84415.0,84414.0,0.64287854]
[1742494693718,7.6e-07,84415.0,84414.0,2.11961851]
[1742494694127,7.6e-07,84415.0,84414.0,2.13415936]
[1742494694303,7.6e-07,84415.0,84414.0,2.11961851]
[1742494694885,7.6e-07,84415.0,84414.0,1.99987936]
[1742494695105,7.6e-07,84415.0,84414.0,2.12815936]
[1742494695307,7.6e-07,84415.0,84414.0,2.13415936]
[1742494696061,7.6e-07,84415.0,84414.0,2.12316888]
[1742494696282,7.6e-07,84415.0,84414.0,2.13221653]
[1742494696483,7.6e-07,84415.0,84414.0,2.12316888]
[1742494696655,7.6e-07,84415.0,84414.0,2.11716888]
[1742494697002,7.6e-07,84415.0,84414.0,2.12116888]
[1742494697214,7.6e-07,84415.0,84414.0,2.10662803]
[1742494697416,7.6e-07,84415.0,84414.0,2.10262803]
[1742494697821,7.6e-07,84415.0,84414.0,2.10662803]
[1742494699886,7.6e-07,84415.0,84414.0,1.96050203]
[1742494700114,7.6e-07,84415.0,84414.0,2.10662803]
[1742494701075,7.6e-07,84415.0,84414.0,2.10296623]
[1742494701272,0.00016986,84415.0,84414.0,2.10296623]
[1742494701470,0.00016986,84415.0,84414.0,2.12150708]
[1742494705068,0.00016986,84415.0,84414.0,2.12150708]
[1742494706830,0.00016986,84415.0,84414.0,0.62150708]
[1742494707184,0.00016986,84415.0,84414.0,2.12150708]
[1742494709395,0.37893986,84415.0,84414.0,1.6386182]
[1742494709600,0.67893986,84415.0,84414.0,0.0043382]
[1742494710016,0.68357529,84415.0,84414.0,0.0043382]
[1742494710227,0.68357529,84415.0,84414.0,0.0003382]
[1742494710570,0.68357529,84415.0,84414.0,0.0023382]
[1742494710982,0.68357529,84415.0,84414.0,0.0003382]
[1742494711540,0.68357529,84415.0,84414.0,0.0023382]
[1742494711938,0.38357529,84415.0,84414.0,0.0023382]
[1742494712481,0.40214787,84415.0,84414.0,0.0023382]
[1742494712733,0.40214787,84415.0,84414.0,0.0003382]
[1742494714065,0.70214787,84415.0,84414.0,0.0003382]
[1742494717063,0.011849,84392.0,84391.0,0.66376]
[1742494717265,0.329738,84392.0,84391.0,0.56376]
[1742494717425,0.237001,84388.0,84385.0,0.371287]
[1742494717604,0.237004,84387.0,84385.0,0.371287]
[1742494717810,0.01185,84388.0,84385.0,0.13428]
[1742494718049,0.24142541,84386.0,84385.0,0.13428]
[1742494718256,0.248856,84386.0,84385.0,0.13428]
[1742494718596,0.24142541,84386.0,84385.0,0.13428]
[1742494718814,0.00441941,84386.0,84385.0,0.51766869]
[1742494719006,0.3,84391.0,84390.0,0.011849]
[1742494719142,0.3,84391.0,84390.0,0.38295888]
[1742494719553,0.3465,84404.0,84398.0,0.011848]
[1742494719778,0.536965,84401.0,84397.0,0.25151585]
[1742494719976,0.3,84401.0,84399.0,0.236969]
[1742494720182,0.3,84401.0,84398.0,0.236972]
[1742494720384,0.31155557,84401.0,84399.0,0.248817]
[1742494720620,0.31155557,84401.0,84400.0,0.236966]
[1742494720961,0.01155557,84401.0,84400.0,0.236966]
[1742494721167,0.01857623,84402.0,84401.0,0.248812]
[1742494721817,0.01857623,84402.0,84401.0,0.236964]
[1742494722976,0.01857623,84402.0,84400.0,1.748814]
[1742494722977,0.33125022,84402.0,84400.0,1.5]
[1742494723444,0.236964,84401.0,84400.0,1.5]
[1742494723646,0.56821122,84402.0,84400.0,1.5]
[1742494723860,0.236964,84401.0,84400.0,1.5]
[1742494725985,0.237964,84401.0,84400.0,1.5]
[1742494726343,0.001,84401.0,84400.0,1.5]
[1742494726745,0.237964,84401.0,84400.0,1.5]
[1742494727167,0.001,84401.0,84400.0,1.736966]
[1742494727980,0.001,84401.0,84400.0,1.5]
[1742494728880,0.237964,84401.0,84400.0,1.5]
[1742494729081,0.249812,84401.0,84400.0,1.5]
[1742494729283,0.249812,84401.0,84386.0,0.01185]
[1742494729284,0.011849,84393.0,84386.0,0.01185]
[1742494729406,0.011849,84393.0,84385.0,0.23741781]
[1742494729407,0.082,84391.0,84388.0,0.25389503]
[1742494729607,0.236998,84389.0,84388.0,0.25389503]
[1742494729982,0.248843,84390.0,84389.0,0.01454085]
[1742494730544,0.318992,84391.0,84389.0,0.01454085]
[1742494730749,0.236994,84390.0,84389.0,0.01454085]
[1742494730930,0.318992,84391.0,84389.0,0.01454085]
[1742494731374,0.318992,84391.0,84390.0,1.5]
[1742494732224,0.236977,84397.0,84393.0,0.236984]
[1742494732422,0.011848,84397.0,84390.0,1.736992]
[1742494732621,0.248826,84396.0,84391.0,0.236991]
[1742494732867,0.01857588,84396.0,84392.0,0.011849]
[1742494733066,0.01857588,84396.0,84395.0,0.011849]
[1742494733269,0.01857588,84396.0,84395.0,0.248829]
[1742494733746,0.02233208,84396.0,84395.0,0.248829]
[1742494734338,0.01857588,84396.0,84395.0,0.248829]
[1742494735004,0.02233208,84396.0,84395.0,0.248829]
[1742494736164,0.02233208,84396.0,84395.0,0.249829]
[1742494736705,0.02233208,84396.0,84395.0,0.001]
[1742494736942,0.03418008,84396.0,84395.0,0.001]
[1742494737113,0.27115808,84396.0,84395.0,0.001]
[1742494737912,0.35145808,84396.0,84395.0,0.001]
[1742494738108,0.65145808,84396.0,84395.0,0.001]
[1742494738572,0.69405808,84396.0,84395.0,0.001]
[1742494738777,0.6799822,84396.0,84395.0,0.001]
[1742494739357,0.548838,84392.0,84391.0,0.0003382]
[1742494739910,0.5525795,84392.0,84391.0,0.0003382]
[1742494740574,0.3037415,84392.0,84391.0,0.2491792]
[1742494740748,0.3047415,84392.0,84391.0,0.3834992]
[1742494741493,0.3047415,84392.0,84391.0,1.8834992]
[1742494741830,0.301,84392.0,84391.0,1.8834992]
[1742494742068,0.301,84392.0,84391.0,0.0003382]
[1742494742069,0.624638,84392.0,84391.0,0.0003382]
[1742494742265,0.62837473,84392.0,84391.0,0.0003382]
[1742494742465,0.62837473,84392.0,84391.0,0.0013382]
[1742494743128,0.62837473,84392.0,84391.0,0.0003382]
[1742494743266,0.62937473,84392.0,84391.0,0.0003382]
[1742494743468,0.64795257,84392.0,84391.0,0.0003382]
[1742494745443,0.39911457,84392.0,84391.0,0.0003382]
[1742494745649,0.57215257,84392.0,84391.0,0.0003382]
[1742494745996,0.32331457,84392.0,84391.0,0.2373302]
[1742494746213,0.30473673,84392.0,84391.0,0.51761508]
[1742494746772,0.00473673,84392.0,84391.0,0.51761508]
[1742494746910,0.00373673,84392.0,84391.0,0.51761508]
[1742494747124,0.01167399,84402.0,84401.0,0.248812]
[1742494747328,0.23695,84406.0,84398.0,0.24882]
[1742494747329,0.23695,84406.0,84400.0,0.236965]
[1742494747589,0.00358454,84402.0,84401.0,0.248812]
[1742494747768,0.01857527,84405.0,84402.0,0.011848]
[1742494748000,0.01857527,84405.0,84404.0,0.236955]
[1742494748234,0.01857527,84405.0,84404.0,0.38291788]
[1742494748426,0.236936,84411.0,84409.0,0.236941]
[1742494748631,0.3,84412.0,84409.0,0.236941]
[1742494748862,0.00418196,84410.0,84409.0,0.236941]
[1742494749069,0.54842259,84412.0,84409.0,0.236941]
[1742494749270,0.00418196,84410.0,84407.0,0.236944]
[1742494749473,0.3,84411.0,84407.0,0.236944]
[1742494749697,0.00418196,84409.0,84408.0,0.236944]
[1742494749854,0.3,84411.0,84409.0,0.23694]
[1742494750049,0.00418196,84409.0,84408.0,0.236944]
[1742494750263,0.3,84411.0,84410.0,0.236938]
[1742494750661,0.01148759,84412.0,84411.0,0.248781]
[1742494750831,0.01857405,84413.0,84411.0,0.248781]
[1742494750832,0.01857405,84413.0,84411.0,0.38289688]
[1742494751031,0.0001691,84414.0,84413.0,0.26331685]
[1742494751244,0.0001691,84414.0,84413.0,1.98289188]
[1742494751856,0.00029362,84414.0,84413.0,1.98289188]
[1742494753685,0.00029362,84414.0,84413.0,1.98389188]
[1742494755521,0.00029362,84414.0,84413.0,2.11817188]
[1742494755730,0.00029362,84414.0,84413.0,1.97204588]
[1742494755919,0.00029362,84414.0,84413.0,0.484056]
[1742494756329,0.00458174,84414.0,84413.0,0.13528]
[1742494756531,0.00458174,84414.0,84413.0,0.37221]
[1742494756754,0.00458174,84414.0,84413.0,0.13528]
[1742494757055,0.00029362,84414.0,84413.0,0.13528]
[1742494757194,0.00458174,84414.0,84413.0,0.001]
[1742494757407,0.00458174,84414.0,84413.0,0.13528]
[1742494757818,0.00458174,84414.0,84413.0,0.001]
[1742494758480,0.24150874,84414.0,84413.0,0.001]
[1742494758862,0.25335474,84414.0,84413.0,0.001]
[1742494759006,0.27192702,84414.0,84413.0,0.001]
[1742494759986,0.23693,84413.0,84410.0,0.236937]
[1742494760141,0.011846,84412.0,84409.0,0.13428]
[1742494760342,0.236935,84411.0,84409.0,0.13428]
[1742494760564,0.248784,84410.0,84409.0,0.13428]
[1742494760873,0.25305723,84410.0,84409.0,0.13428]
[1742494761266,0.24121123,84410.0,84409.0,1.63428]
[1742494761795,0.25305723,84410.0,84409.0,1.63428]
[1742494762451,0.00427323,84410.0,84409.0,1.63428]
[1742494762607,0.24121123,84410.0,84409.0,1.63428]
[1742494763023,0.24121123,84410.0,84409.0,1.501]
[1742494763236,0.25305723,84410.0,84409.0,1.501]
[1742494766251,0.63325723,84410.0,84409.0,0.001]
[1742494766378,0.68275723,84410.0,84409.0,0.001]
[1742494766806,0.00427323,84410.0,84409.0,0.51818388]
[1742494767139,0.00029362,84414.0,84413.0,0.248776]
[1742494767342,0.00029362,84414.0,84413.0,1.88289188]
[1742494767633,0.00438807,84414.0,84413.0,1.88289188]
[1742494767936,0.00029362,84414.0,84413.0,1.88289188]
[1742494771341,0.00029362,84414.0,84413.0,1.88389188]
[1742494775788,6.2e-07,84414.0,84413.0,2.42108927]
[1742494775955,0.0001692,84430.0,84429.0,0.26326985]
[1742494776155,0.3,84448.0,84438.0,0.248703]
[1742494776368,0.3,84448.0,84438.0,0.38281888]
[1742494776728,0.01286268,84439.0,84438.0,1.88281888]
[1742494776960,0.001,84439.0,84438.0,1.88281888]
[1742494777516,0.001,84439.0,84438.0,1.90596089]
[1742494777918,0.01261325,84439.0,84438.0,1.90596089]
[1742494778173,0.001,84439.0,84438.0,1.90596089]
[1742494778576,0.02450186,84439.0,84438.0,1.52314201]
[1742494778789,0.011844,84430.0,84421.0,0.011845]
[1742494778988,0.3,84430.0,84426.0,0.02407699]
[1742494779186,0.236891,84427.0,84426.0,0.02407699]
[1742494779394,0.236891,84427.0,84422.0,0.24875]
[1742494779613,0.248732,84428.0,84424.0,0.236899]
[1742494779836,0.236892,84427.0,84423.0,0.236901]
[1742494780020,0.248732,84428.0,84424.0,0.236898]
[1742494780233,0.248732,84428.0,84425.0,0.236895]
[1742494780433,0.00380591,84427.0,84425.0,0.236895]
[1742494780651,0.00380591,84427.0,84425.0,0.26042861]
[1742494781461,0.00380591,84427.0,84426.0,1.5]
[1742494781816,0.00380591,84427.0,84426.0,1.736893]
[1742494782027,0.00380591,84427.0,84426.0,1.5]
[1742494782422,0.24069691,84427.0,84426.0,1.5]
[1742494782626,0.548737,84426.0,84425.0,0.001]
[1742494782886,0.624537,84426.0,84425.0,0.001]
[1742494783088,0.62834291,84426.0,84425.0,0.001]
[1742494783553,0.236927,84414.0,84411.0,0.236934]
[1742494783761,0.011846,84414.0,84409.0,0.96014514]
[1742494783960,0.248784,84410.0,84409.0,0.56376]
[1742494784570,0.25258991,84410.0,84409.0,0.56376]
[1742494785095,0.248794,84407.0,84406.0,0.02416716]
[1742494785298,0.011848,84397.0,84391.0,0.5640582]
[1742494785526,0.236975,84397.0,84396.0,0.00075301]
[1742494785772,0.24078091,84397.0,84396.0,0.00075301]
[1742494786051,0.26415882,84397.0,84396.0,0.00075301]
[1742494787200,0.01533582,84397.0,84396.0,0.00075301]
[1742494788988,0.01533582,84397.0,84396.0,0.23773101]
[1742494789713,0.01533582,84397.0,84396.0,0.00075301]
[1742494789916,0.01533582,84397.0,84396.0,0.23773101]
[1742494790159,0.01533582,84397.0,84396.0,0.00075301]
[1742494790506,0.26415882,84397.0,84396.0,0.00075301]
[1742494791336,0.01533582,84397.0,84396.0,1.50075301]
[1742494791502,0.25231082,84397.0,84396.0,1.50075301]
[1742494791698,0.01533582,84397.0,84396.0,1.50075301]
[1742494792187,0.01533582,84397.0,84396.0,1.74957901]
[1742494792518,0.01152991,84397.0,84396.0,1.74957901]
[1742494792719,0.236916,84418.0,84413.0,0.01454085]
[1742494792920,0.0115548,84418.0,84414.0,0.236927]
[1742494793152,0.3,84424.0,84417.0,0.236919]
[1742494793325,0.3,84424.0,84422.0,0.236903]
[1742494793521,0.236894,84426.0,84422.0,0.236903]
[1742494793826,0.236899,84424.0,84421.0,0.236905]
[1742494794367,0.00378198,84423.0,84422.0,0.236905]
[1742494794871,0.3,84425.0,84423.0,0.236901]
[1742494795298,0.00378198,84424.0,84423.0,0.236901]
[1742494796573,0.00378198,84424.0,84422.0,0.236905]
[1742494797041,0.00378198,84424.0,84421.0,0.236907]
[1742494797249,0.00378198,84424.0,84420.0,0.236908]
[1742494797452,0.3,84423.0,84418.0,0.248759]
[1742494797584,0.3,84423.0,84420.0,0.236909]
[1742494797991,0.00378198,84422.0,84419.0,0.236911]
[1742494798339,0.236913,84420.0,84415.0,0.27192711]
[1742494798677,0.00378198,84419.0,84415.0,0.27192711]
[1742494798928,0.00378198,84419.0,84390.0,0.473986]
[1742494798929,0.011846,84413.0,84400.0,0.236966]
[1742494799102,0.248781,84412.0,84406.0,0.236949]
[1742494799294,0.248781,84412.0,84405.0,0.236952]
[1742494799295,0.236936,84411.0,84405.0,0.236952]
[1742494799944,0.236943,84409.0,84405.0,0.248799]
[1742494800247,0.248802,84404.0,84403.0,0.00041481]
[1742494800447,0.548802,84404.0,84403.0,0.00041481]
[1742494801104,0.55258572,84404.0,84403.0,0.00041481]
[1742494802879,0.75376075,84404.0,84403.0,0.00041481]
[1742494803090,0.75376075,84404.0,84391.0,0.0003382]
[1742494803091,0.548838,84392.0,84391.0,0.0003382]
[1742494803486,0.55761007,84392.0,84391.0,0.0003382]
[1742494803844,0.7046803,84392.0,84391.0,0.0003382]
[1742494804044,0.7855803,84392.0,84391.0,0.0003382]
[1742494804247,0.548867,84382.0,84364.0,0.0003384]
[1742494804445,0.548918,84365.0,84364.0,0.0003384]
[1742494804870,0.3037602,84365.0,84364.0,0.0003384]
[1742494805089,0.3156132,84365.0,84364.0,0.0003384]
[1742494805415,0.58263122,84365.0,84364.0,0.0003384]
[1742494805739,0.58263122,84365.0,84364.0,0.00046292]
[1742494807435,0.58363122,84365.0,84364.0,0.00046292]
[1742494807858,0.58263122,84365.0,84364.0,0.00046292]
[1742494808279,0.76300918,84365.0,84364.0,9.2e-07]
[1742494808710,0.76300918,84365.0,84360.0,0.0003382]
[1742494808711,0.578929,84361.0,84360.0,1.2e-07]
[1742494808924,0.578929,84361.0,84343.0,0.0003384]
[1742494808925,0.55398,84344.0,84343.0,0.0003384]
[1742494809124,0.80943503,84344.0,84343.0,0.0003384]
[1742494809327,0.80943503,84344.0,84343.0,0.00046304]
[1742494809640,0.81309796,84344.0,84343.0,0.00046304]
[1742494811902,0.89109796,84344.0,84343.0,0.00046304]
[1742494812112,0.89309796,84344.0,84343.0,0.00046304]
[1742494812320,1.01389415,84344.0,84343.0,0.00046304]
[1742494812574,0.93979796,84344.0,84343.0,0.00046304]
[1742494813340,0.96479796,84344.0,84343.0,4e-08]
[1742494813657,0.98668337,84344.0,84343.0,4e-08]
[1742494813867,0.98668337,84344.0,84319.0,0.0003384]
[1742494813868,0.54905,84320.0,84319.0,0.0003384]
[1742494814072,0.55252453,84320.0,84319.0,0.00040737]
[1742494815478,0.56433274,84320.0,84319.0,0.00040737]
[1742494816478,0.56633274,84320.0,84319.0,0.00040737]
[1742494816722,0.58492648,84320.0,84319.0,0.00040737]
[1742494818916,0.71820464,84320.0,84319.0,0.00040737]
[1742494819859,0.71620464,84320.0,84319.0,0.00040737]
[1742494820013,0.71820464,84320.0,84319.0,0.00040737]
[1742494820971,0.76710464,84320.0,84319.0,0.00040737]
[1742494821202,0.7485109,84320.0,84319.0,0.00040737]
[1742494821591,0.005,84317.0,84316.0,5.7e-07]
[1742494821777,0.43643503,84317.0,84316.0,5.7e-07]
[1742494822103,0.43939424,84317.0,84316.0,5.7e-07]
[1742494822480,0.554062,84316.0,84315.0,7.7e-07]
[1742494822693,0.67363703,84316.0,84315.0,7.7e-07]
[1742494822853,0.67654651,84316.0,84315.0,7.7e-07]
[1742494823259,1.08464651,84316.0,84315.0,7.7e-07]
[1742494823700,1.08464651,84316.0,84311.0,0.0003384]
[1742494823701,0.554074,84312.0,84311.0,1.7e-07]
[1742494823908,0.80924903,84312.0,84311.0,1.7e-07]
[1742494824078,0.81214521,84312.0,84311.0,1.7e-07]
[1742494824284,0.549104,84302.0,84301.0,0.001]
[1742494824489,0.549104,84302.0,84301.0,0.00141603]
[1742494824894,0.55200018,84302.0,84301.0,0.00141603]
[1742494825089,0.30289618,84302.0,84301.0,0.23866103]
[1742494825313,0.30289618,84302.0,84301.0,0.25052303]
[1742494825522,0.32149471,84302.0,84301.0,0.25052303]
[1742494825731,0.32149471,84302.0,84301.0,1.73866103]
[1742494825732,0.31859853,84302.0,84301.0,1.73866103]
[1742494825954,0.32149471,84302.0,84301.0,1.75052303]
[1742494826160,0.31859853,84302.0,84301.0,1.75052303]
[1742494826369,0.249076,84312.0,84308.0,0.237223]
[1742494826370,0.3,84311.0,84308.0,0.237223]
[1742494826600,0.0185966,84308.0,84307.0,0.237227]
[1742494827149,0.3,84307.0,84305.0,0.237231]
[1742494827414,0.3,84307.0,84306.0,0.249092]
[1742494828071,0.0185966,84308.0,84306.0,0.237231]
[1742494828273,0.0185966,84308.0,84307.0,0.237228]
[1742494828611,0.0185966,84308.0,84306.0,0.237231]
[1742494829508,0.0185966,84308.0,84307.0,0.237228]
[1742494830449,0.3185966,84308.0,84306.0,0.237231]
[1742494830620,0.3185966,84308.0,84306.0,0.2374004]
[1742494831237,0.3185966,84308.0,84307.0,1.5]
[1742494831861,0.3185966,84308.0,84306.0,0.2374004]
[1742494832093,0.0185966,84308.0,84307.0,0.237228]
[1742494832224,0.0185966,84308.0,84307.0,1.749089]
[1742494832652,0.02307997,84308.0,84307.0,1.749089]
[1742494834597,0.02307997,84308.0,84307.0,1.5]
[1742494834598,0.27216597,84308.0,84307.0,1.5]
[1742494835039,0.02307997,84308.0,84307.0,1.5]
[1742494835399,0.02307997,84308.0,84306.0,0.2373994]
[1742494835601,0.237228,84307.0,84306.0,0.0001694]
[1742494835939,0.24171265,84307.0,84306.0,0.0001694]
[1742494837159,0.00448465,84307.0,84306.0,0.0001694]
[1742494837359,0.00448465,84307.0,84306.0,0.0011694]
[1742494837592,0.00448465,84307.0,84306.0,0.0122138]
[1742494837773,0.24171265,84307.0,84306.0,0.0122138]
[1742494837931,0.25357365,84307.0,84306.0,0.0122138]
[1742494838344,0.55357365,84307.0,84306.0,0.0122138]
[1742494838543,0.55357365,84307.0,84306.0,0.0011694]
[1742494839540,0.55357365,84307.0,84306.0,0.0001694]
[1742494839922,0.55457365,84307.0,84306.0,0.0001694]
[1742494843930,0.57317163,84307.0,84306.0,0.0001694]
[1742494845727,0.69274666,84307.0,84306.0,0.0001694]
[1742494846330,0.69174666,84307.0,84306.0,0.0001694]
[1742494846530,0.57217163,84307.0,84306.0,0.0001694]
[1742494846739,0.57517163,84307.0,84306.0,0.0001694]
[1742494847073,0.57217163,84307.0,84306.0,0.0001694]
[1742494847525,0.57717163,84307.0,84306.0,0.0001694]
[1742494847984,0.57217163,84307.0,84306.0,0.0001694]
[1742494848410,0.57517163,84307.0,84306.0,0.0001694]
[1742494850074,0.32608263,84307.0,84306.0,0.0120304]
[1742494850276,0.00748465,84307.0,84306.0,0.45947728]
[1742494850615,0.003,84307.0,84306.0,0.45947728]
[1742494851217,0.3003388,84311.0,84310.0,0.237219]
[1742494851344,0.0003388,84311.0,84310.0,0.25175985]
[1742494851562,0.0003388,84311.0,84310.0,0.26361985]
[1742494851966,0.0003388,84311.0,84310.0,1.76361985]
[1742494853992,0.0003388,84311.0,84310.0,1.88419488]
[1742494855625,0.0003388,84311.0,84310.0,2.01899488]
[1742494855818,0.2494148,84311.0,84310.0,1.501]
[1742494855954,0.2494148,84311.0,84310.0,0.001]
[1742494856161,0.25392801,84311.0,84310.0,0.001]
[1742494858518,0.55392801,84311.0,84310.0,0.001]
[1742494859123,0.54206801,84311.0,84310.0,0.001]
[1742494859325,0.55392801,84311.0,84310.0,0.001]
[1742494862548,0.54206801,84311.0,84310.0,0.001]
[1742494862818,0.55392801,84311.0,84310.0,0.001]
[1742494863226,0.54942801,84311.0,84310.0,0.001]
[1742494863428,0.55245352,84311.0,84310.0,0.001]
[1742494863809,0.5710491,84311.0,84310.0,0.001]
[1742494867090,0.237228,84307.0,84306.0,1.5001694]
[1742494867477,0.25346687,84307.0,84306.0,1.5001694]
[1742494867701,0.25346687,84307.0,84306.0,0.0001694]
[1742494868648,0.00437787,84307.0,84306.0,0.0001694]
[1742494868856,0.3,84309.0,84306.0,0.0001694]
[1742494869061,0.237228,84307.0,84306.0,0.0021694]
[1742494869505,0.24160473,84307.0,84306.0,0.0021694]
[1742494869709,0.25346573,84307.0,84306.0,0.0021694]
[1742494870475,0.00437673,84307.0,84306.0,0.2394004]
[1742494870684,0.00437673,84307.0,84306.0,0.51647728]
[1742494870879,0.237228,84307.0,84306.0,0.0021694]
[1742494871303,0.249089,84307.0,84306.0,0.0021694]
[1742494871475,0.249089,84307.0,84306.0,0.0001694]
[1742494871623,0.25327703,84307.0,84306.0,0.0001694]
[1742494873559,0.55327703,84307.0,84306.0,0.0001694]
[1742494874003,0.57187373,84307.0,84306.0,0.0001694]
[1742494875018,0.77054876,84307.0,84306.0,0.0001694]
[1742494875221,0.77554876,84307.0,84306.0,4e-07]
[1742494875422,0.78462794,84307.0,84306.0,4e-07]
[1742494875918,0.80962794,84307.0,84306.0,4e-07]
[1742494876118,0.80962794,84307.0,84301.0,0.00137643]
[1742494876119,0.554104,84302.0,84301.0,0.00137643]
[1742494876364,0.67786869,84302.0,84301.0,0.00137643]
[1742494876743,0.549169,84280.0,84279.0,0.0003384]
[1742494876905,0.549169,84280.0,84279.0,0.0004631]
[1742494877328,0.67293369,84280.0,84279.0,0.0004631]
[1742494877530,0.6915354,84280.0,84279.0,0.0004631]
[1742494877731,0.6965354,84280.0,84279.0,0.0004631]
[1742494877934,0.7456354,84280.0,84279.0,0.0004631]
[1742494878160,1.1537354,84280.0,84279.0,1e-07]
[1742494878561,0.549192,84272.0,84271.0,0.0009601]
[1742494878761,0.66876703,84272.0,84271.0,0.0009601]
[1742494879180,0.68183627,84272.0,84271.0,0.0009601]
[1742494879623,0.55338166,84272.0,84271.0,0.0009601]